bitfinex-derivatives/quotes_ETHF0:USTF0_20260117
["timestamp","ask_amount","ask_price","bid_price","bid_amount"]
[1768616842334,1.85812,3288.2,3286.7,0.98846718]
[1768616842524,0.26238069,3288.1,3286.7,0.98846718]
[1768616842731,0.26238069,3288.0,3286.7,1.85900733]
[1768616842933,0.15212,3288.2,3286.7,1.85900733]
[1768616843134,0.26238257,3288.1,3286.7,1.85900733]
[1768616843431,0.15212,3288.2,3286.7,1.85900733]
[1768616843632,0.262349,3288.1,3286.7,1.85900733]
[1768616843832,0.88324649,3288.0,3286.7,1.85900733]
[1768616844133,0.88324649,3287.9,3286.7,1.85900733]
[1768616844327,0.88324649,3287.8,3286.7,1.85900733]
[1768616844536,0.88324649,3287.7,3286.7,1.85900733]
[1768616844735,0.88324649,3287.6,3286.7,1.85900733]
[1768616845038,0.88324649,3287.5,3286.7,1.85900733]
[1768616845239,0.15212,3288.2,3286.7,1.85900733]
[1768616845430,1.14536848,3288.1,3286.7,1.85900733]
[1768616845631,0.88306672,3288.0,3286.7,1.85900733]
[1768616845838,0.88306672,3287.9,3286.8,0.87054015]
[1768616846038,0.88306672,3287.8,3286.8,0.87054015]
[1768616846239,0.88306672,3287.7,3286.8,0.87054015]
[1768616846436,0.88306672,3287.6,3286.8,0.87054015]
[1768616846637,0.15212,3288.2,3286.8,0.87054015]
[1768616846831,1.14527384,3288.1,3286.8,0.87054015]
[1768616847034,0.88299352,3288.0,3286.8,0.87054015]
[1768616847340,0.88299352,3287.9,3286.8,0.87054015]
[1768616847541,0.88299352,3287.8,3286.8,0.87054015]
[1768616847840,0.88299352,3287.7,3286.8,0.87054015]
[1768616848039,0.15212,3288.2,3286.8,0.87054015]
[1768616848238,1.14513161,3288.1,3286.8,0.87054015]
[1768616848441,0.88288361,3288.0,3286.8,0.87054015]
[1768616848639,0.88288361,3287.9,3286.8,0.87054015]
[1768616848839,0.88288361,3287.8,3286.8,0.87054015]
[1768616849133,0.15212,3288.2,3286.8,0.87054015]
[1768616849335,1.14467938,3288.1,3287.0,0.98796762]
[1768616849531,0.88251394,3288.0,3287.0,0.98796762]
[1768616849730,0.88251394,3287.9,3287.0,0.98796762]
[1768616849930,0.88251394,3287.8,3287.0,0.98796762]
[1768616850133,0.15212,3288.2,3287.0,0.98796762]
[1768616850332,1.14466587,3288.1,3287.0,0.98796762]
[1768616850537,0.8824991,3288.0,3287.0,0.98796762]
[1768616850734,0.8824991,3287.9,3287.0,0.98796762]
[1768616850935,0.8824991,3287.8,3287.0,0.98796762]
[1768616851127,0.8824991,3287.7,3287.0,0.98796762]
[1768616851327,0.15212,3288.2,3287.0,0.98796762]
[1768616851638,1.14474857,3288.1,3287.0,0.98796762]
[1768616851830,0.88257769,3288.0,3287.0,0.98796762]
[1768616852026,0.88257769,3287.9,3287.0,0.98796762]
[1768616852231,0.88257769,3287.8,3287.0,0.98796762]
[1768616852530,0.88257769,3287.7,3287.0,0.98796762]
[1768616852731,2.46690368,3288.3,3287.0,0.98796762]
[1768616852945,1.14477205,3288.2,3287.0,0.98796762]
[1768616853240,1.14477205,3288.1,3287.0,0.98796762]
[1768616853438,0.88259661,3288.0,3287.0,0.98796762]
[1768616853636,0.88259661,3287.9,3287.0,0.98796762]
[1768616853837,0.88259661,3287.8,3287.0,0.98796762]
[1768616854033,0.88259661,3287.7,3287.0,0.98796762]
[1768616854336,2.46690368,3288.3,3287.0,0.98796762]
[1768616854542,1.14486347,3288.2,3287.0,0.98796762]
[1768616854739,1.14486347,3288.1,3287.0,0.98796762]
[1768616854940,0.88266853,3288.0,3287.0,0.98796762]
[1768616855141,0.88266853,3287.9,3287.0,0.98796762]
[1768616855342,0.88266853,3287.8,3287.0,0.98796762]
[1768616855542,0.88266853,3287.7,3287.0,0.98796762]
[1768616855744,2.46690368,3288.3,3287.0,0.98796762]
[1768616855944,1.14494106,3288.2,3287.0,0.98796762]
[1768616856244,1.14494106,3288.1,3287.0,0.98796762]
[1768616856542,1.14494106,3288.0,3287.0,0.98796762]
[1768616856734,0.882729,3287.9,3287.0,0.98796762]
[1768616856936,0.882729,3287.8,3287.0,0.98796762]
[1768616857137,0.882729,3287.7,3286.8,0.87054015]
[1768616857346,2.46690368,3288.3,3287.1,0.98796762]
[1768616857546,1.14394211,3288.2,3287.1,0.98796762]
[1768616857738,1.14394211,3288.1,3287.1,0.98796762]
[1768616857939,1.14394211,3288.0,3287.1,0.98796762]
[1768616858141,1.1439747,3287.9,3287.1,0.98796762]
[1768616858453,0.88166351,3287.8,3287.1,0.98796762]
[1768616858649,0.88166351,3287.7,3287.1,0.98796762]
[1768616858849,2.46690368,3288.3,3287.1,0.98796762]
[1768616859052,1.14408501,3288.2,3287.1,0.98796762]
[1768616859352,1.14408501,3288.1,3287.1,0.98796762]
[1768616859651,1.14408501,3288.0,3287.1,0.98796762]
[1768616859954,1.14408501,3287.9,3287.1,0.98796762]
[1768616860247,0.88177405,3287.8,3287.1,0.98796762]
[1768616860447,0.88177405,3287.7,3287.1,0.98796762]
[1768616860647,0.88177405,3287.6,3287.1,0.98796762]
[1768616860848,2.46690368,3288.3,3287.1,0.98796762]
[1768616861052,1.14451746,3288.2,3287.1,0.98796762]
[1768616861252,1.14451746,3288.1,3287.1,0.98796762]
[1768616861442,1.14451746,3288.0,3287.1,0.98796762]
[1768616861642,1.14451746,3287.9,3287.1,0.98796762]
[1768616861843,0.88210774,3287.8,3287.1,0.98796762]
[1768616862142,0.88210774,3287.7,3287.1,0.98796762]
[1768616862441,0.88210774,3287.6,3287.1,0.98796762]
[1768616862643,2.46690368,3288.3,3287.1,0.98796762]
[1768616862851,1.14489901,3288.2,3287.1,0.98796762]
[1768616863050,1.14489901,3288.1,3287.1,0.98796762]
[1768616863349,1.14489901,3288.0,3287.1,0.98796762]
[1768616863650,1.14489901,3287.9,3287.1,0.98796762]
[1768616863840,0.88240184,3287.8,3287.1,0.98796762]
[1768616864043,0.88240184,3287.7,3287.1,0.98796762]
[1768616864238,0.88240184,3287.6,3287.1,0.98796762]
[1768616864441,2.46690368,3288.3,3287.1,0.98796762]
[1768616864652,1.14512103,3288.2,3287.1,0.98796762]
[1768616864852,1.14512103,3288.1,3287.1,0.98796762]
[1768616865053,1.14512103,3288.0,3287.1,0.98796762]
[1768616865250,1.14512103,3287.9,3287.1,0.98796762]
[1768616865449,1.14512103,3287.8,3287.1,0.98796762]
[1768616865650,0.88257343,3287.7,3287.1,0.98796762]
[1768616865951,0.88257343,3287.6,3287.1,0.98796762]
[1768616866153,0.88285584,3287.5,3287.1,0.98796762]
[1768616866451,2.46690368,3288.3,3287.1,0.98796762]
[1768616866651,1.14547366,3288.2,3287.1,0.98796762]
[1768616866954,1.14547366,3288.1,3287.1,0.98796762]
[1768616867154,1.14547366,3288.0,3287.1,0.98796762]
[1768616867354,1.14547366,3287.9,3287.1,0.98796762]
[1768616867543,0.88285556,3287.8,3287.1,0.98796762]
[1768616867747,0.88285556,3287.7,3287.1,0.98796762]
[1768616868054,0.88285556,3287.6,3287.1,0.98796762]
[1768616868250,0.88285556,3287.5,3287.1,0.98796762]
[1768616868546,2.46690368,3288.3,3287.1,0.98796762]
[1768616868748,0.26265127,3288.2,3287.1,0.98796762]
[1768616868946,0.26265127,3288.1,3287.1,0.98796762]
[1768616869147,0.26265127,3288.0,3287.1,0.98796762]
[1768616869353,2.46690368,3288.3,3287.1,0.98796762]
[1768616869354,0.26265127,3287.9,3287.1,0.98796762]
[1768616869654,2.46690368,3288.3,3287.1,0.98796762]
[1768616869853,0.26266648,3288.2,3287.1,0.98796762]
[1768616870048,0.26266648,3288.1,3287.1,0.98796762]
[1768616870253,0.26266648,3288.0,3287.1,0.98796762]
[1768616870449,0.26266648,3287.9,3287.1,0.98796762]
[1768616870754,2.46690368,3288.3,3287.1,0.98796762]
[1768616870950,0.26268731,3288.2,3287.1,0.98796762]
[1768616871149,0.26268731,3288.1,3287.1,0.98796762]
[1768616871450,2.46690368,3288.3,3287.1,0.98796762]
[1768616871451,0.26268731,3288.0,3287.1,0.98796762]
[1768616871650,0.26268731,3287.9,3287.1,0.98796762]
[1768616871949,2.46690368,3288.3,3287.1,0.98796762]
[1768616872154,0.26271288,3288.2,3287.1,0.98796762]
[1768616872348,0.26271288,3288.1,3287.1,0.98796762]
[1768616872549,0.26271288,3288.0,3287.1,0.98796762]
[1768616872748,0.26271288,3287.9,3287.1,0.98796762]
[1768616872949,2.46690368,3288.3,3287.1,0.98796762]
[1768616873155,0.26271834,3288.2,3287.1,0.98796762]
[1768616873355,0.26271834,3288.1,3287.1,0.98796762]
[1768616873556,0.26271834,3288.0,3287.1,0.98796762]
[1768616873755,0.26271834,3287.9,3287.1,0.98796762]
[1768616873958,2.46690368,3288.3,3287.1,0.98796762]
[1768616874157,0.26271962,3288.2,3287.1,0.98796762]
[1768616874351,0.26271962,3288.1,3287.1,0.98796762]
[1768616874553,0.26271962,3288.0,3287.1,0.98796762]
[1768616874753,0.26271962,3287.9,3287.1,0.98796762]
[1768616875059,2.46690368,3288.3,3287.1,0.98796762]
[1768616875259,0.26272281,3288.2,3287.1,0.98796762]
[1768616875458,0.26272281,3288.1,3287.1,0.98796762]
[1768616875658,0.26272281,3288.0,3287.1,0.98796762]
[1768616875859,0.26272281,3287.9,3287.1,0.98796762]
[1768616876061,2.46690368,3288.3,3287.1,0.98796762]
[1768616876262,0.26272746,3288.2,3287.1,0.98796762]
[1768616876462,0.26272746,3288.1,3287.1,0.98796762]
[1768616876658,0.26272746,3288.0,3287.1,0.98796762]
[1768616876858,0.26272746,3287.9,3287.1,0.98796762]
[1768616877059,2.46690368,3288.3,3287.1,0.98796762]
[1768616877255,0.26272927,3288.2,3287.1,0.98796762]
[1768616877454,0.26272927,3288.1,3287.1,0.98796762]
[1768616877661,2.46690368,3288.3,3287.1,0.98796762]
[1768616877662,0.26272927,3288.0,3287.1,0.98796762]
[1768616877960,0.26272927,3287.9,3287.1,0.98796762]
[1768616878161,2.46690368,3288.3,3287.1,0.98796762]
[1768616878361,0.26273451,3288.2,3287.1,0.98796762]
[1768616878554,0.26273451,3288.1,3287.1,0.98796762]
[1768616878754,0.26273451,3288.0,3287.1,0.98796762]
[1768616878963,0.26273451,3287.9,3287.1,0.98796762]
[1768616879165,2.46690368,3288.3,3287.1,0.98796762]
[1768616879465,0.26294472,3288.2,3287.1,0.98796762]
[1768616879756,0.26294472,3288.1,3287.1,0.98796762]
[1768616879962,0.26214999,3288.0,3287.1,0.98796762]
[1768616880150,0.26214999,3287.9,3287.1,0.98796762]
[1768616880349,0.88047164,3287.8,3287.1,0.98796762]
[1768616880559,0.88047164,3287.7,3287.1,0.98796762]
[1768616880759,0.88047164,3287.6,3287.1,0.98796762]
[1768616881060,0.88047164,3287.5,3287.1,0.98796762]
[1768616881259,2.46690368,3288.3,3287.1,0.98796762]
[1768616881460,1.14248485,3288.2,3287.1,0.98796762]
[1768616881765,1.14248485,3288.1,3286.8,0.87054015]
[1768616882060,0.98796762,3287.8,3286.5,0.98796762]
[1768616882261,0.88035985,3287.7,3286.5,0.98796762]
[1768616882464,0.88035985,3287.7,3286.3,0.85988011]
[1768616882465,0.88035985,3287.6,3286.7,0.98796762]
[1768616882663,0.88035985,3287.5,3286.7,0.98796762]
[1768616882866,0.88035985,3287.4,3286.7,0.98796762]
[1768616883052,1.89910985,3288.2,3286.7,0.98796762]
[1768616883257,1.14226795,3288.1,3286.7,0.98796762]
[1768616883564,1.14226795,3288.0,3286.7,0.98796762]
[1768616883765,1.14226795,3287.9,3286.7,0.98796762]
[1768616883960,1.14226795,3287.8,3286.7,0.98796762]
[1768616884161,0.88018329,3287.7,3286.7,0.98796762]
[1768616884368,0.88018329,3287.6,3286.7,0.98796762]
[1768616884567,0.88018329,3287.5,3286.7,0.98796762]
[1768616884768,1.89910985,3288.2,3286.7,0.98796762]
[1768616884972,1.14218401,3288.1,3286.7,0.98796762]
[1768616885167,1.14218401,3288.0,3286.7,0.98796762]
[1768616885468,1.14218401,3287.9,3286.7,0.98796762]
[1768616885669,0.88012695,3287.8,3286.7,0.98796762]
[1768616885867,0.88012695,3287.7,3286.7,0.98796762]
[1768616886168,0.88012695,3287.6,3286.7,0.98796762]
[1768616886366,0.88012695,3287.5,3286.7,0.98796762]
[1768616886665,1.89910985,3288.2,3286.7,0.98796762]
[1768616886866,1.14198538,3288.1,3286.7,0.98796762]
[1768616887167,1.14198538,3288.0,3286.7,0.98796762]
[1768616887368,1.14198538,3287.9,3286.7,0.98796762]
[1768616887561,0.87993925,3287.8,3286.7,0.98796762]
[1768616887865,0.87993925,3287.7,3286.7,0.98796762]
[1768616888053,0.87993925,3287.6,3286.7,0.98796762]
[1768616888254,0.87993925,3287.5,3286.7,0.98796762]
[1768616888464,0.87993925,3287.4,3286.7,0.98796762]
[1768616888664,0.87993925,3287.3,3286.7,0.98796762]
[1768616888865,1.89910985,3288.2,3286.7,0.98796762]
[1768616889067,1.14195557,3288.1,3286.7,0.98796762]
[1768616889269,1.14195557,3288.0,3286.7,0.98796762]
[1768616889471,1.14195557,3287.9,3286.7,0.98796762]
[1768616889669,0.87991625,3287.8,3286.7,0.98796762]
[1768616889968,0.87991625,3287.7,3286.7,0.98796762]
[1768616890165,0.87991625,3287.6,3286.7,0.98796762]
[1768616890372,0.87991625,3287.5,3286.7,0.98796762]
[1768616890573,0.87991625,3287.4,3286.9,0.98796762]
[1768616890768,0.87991625,3287.3,3286.9,0.98796762]
[1768616891069,1.89910985,3288.2,3286.9,0.98796762]
[1768616891272,1.14190514,3288.1,3286.9,0.98796762]
[1768616891471,1.14190514,3288.0,3286.9,0.98796762]
[1768616891772,1.14190514,3287.9,3286.9,0.98796762]
[1768616891959,0.87987603,3287.8,3286.9,0.98796762]
[1768616892160,0.87987603,3287.7,3286.9,0.98796762]
[1768616892365,0.87987603,3287.6,3286.9,0.98796762]
[1768616892665,0.87987603,3287.5,3286.9,0.98796762]
[1768616892860,0.87987603,3287.4,3286.9,0.98796762]
[1768616893059,0.87987603,3287.3,3286.9,0.98796762]
[1768616893267,1.89910985,3288.2,3286.9,0.98796762]
[1768616893463,1.14149666,3288.1,3286.9,0.98796762]
[1768616893666,1.14149666,3288.0,3286.9,0.98796762]
[1768616893867,1.14149666,3287.9,3286.9,0.98796762]
[1768616894068,0.87956311,3287.8,3286.9,0.98796762]
[1768616894265,0.87956311,3287.7,3286.9,0.98796762]
[1768616894471,0.87956311,3287.6,3286.9,0.98796762]
[1768616894674,0.91114223,3288.3,3287.1,0.98796762]
[1768616894973,1.17307469,3288.2,3287.1,0.98796762]
[1768616895169,0.26193246,3288.1,3287.1,0.98796762]
[1768616895368,0.26193246,3288.0,3287.1,0.98796762]
[1768616895570,0.91114223,3288.2,3287.1,0.98796762]
[1768616895769,0.25980272,3288.1,3287.1,0.98796762]
[1768616896068,0.25980272,3288.0,3287.1,0.98796762]
[1768616896270,0.25980272,3287.9,3287.1,0.98796762]
[1768616896458,0.25980272,3287.8,3287.1,0.98796762]
[1768616896662,0.91114223,3288.2,3287.1,0.98796762]
[1768616896872,0.25981492,3288.1,3287.1,0.98796762]
[1768616897074,0.25981492,3288.0,3287.1,0.98796762]
[1768616897263,0.25981492,3287.9,3287.1,0.98796762]
[1768616897468,0.91114223,3288.2,3287.1,0.98796762]
[1768616897667,0.25979896,3288.1,3287.1,0.98796762]
[1768616897870,0.25979896,3288.0,3287.1,0.98796762]
[1768616898172,0.25979896,3287.9,3287.1,0.98796762]
[1768616898374,0.91114223,3288.2,3287.1,0.98796762]
[1768616898676,0.25978511,3288.1,3287.1,0.98796762]
[1768616898861,0.25978511,3288.0,3287.1,0.98796762]
[1768616899064,0.25978511,3287.9,3287.1,0.98796762]
[1768616899260,0.91114223,3288.2,3287.1,0.98796762]
[1768616899468,0.2597744,3288.1,3287.1,0.98796762]
[1768616899668,0.2597744,3288.0,3287.1,0.98796762]
[1768616899870,0.91114223,3288.2,3287.1,0.98796762]
[1768616900072,0.25977426,3288.1,3287.1,0.98796762]
[1768616900371,0.25977426,3288.0,3287.1,0.98796762]
[1768616900668,0.91114223,3288.2,3287.1,0.98796762]
[1768616900873,0.25976425,3288.1,3287.1,0.98796762]
[1768616901075,0.25976409,3288.0,3287.1,0.98796762]
[1768616901279,0.91114223,3288.2,3287.1,0.98796762]
[1768616901577,0.25975539,3288.1,3287.1,0.98796762]
[1768616901766,0.25975539,3288.0,3287.1,0.98796762]
[1768616901967,0.91114223,3288.2,3287.1,0.98796762]
[1768616902166,0.25975512,3288.1,3287.1,0.98796762]
[1768616902370,0.25975512,3288.0,3287.1,0.98796762]
[1768616902572,0.91114223,3288.2,3287.1,0.98796762]
[1768616902774,0.25974752,3288.1,3287.1,0.98796762]
[1768616902973,0.25974752,3288.0,3287.1,0.98796762]
[1768616903175,0.91114223,3288.2,3287.1,0.98796762]
[1768616903375,0.25974549,3288.1,3287.1,0.98796762]
[1768616903675,0.25974549,3288.0,3287.1,0.98796762]
[1768616903874,0.91114223,3288.2,3287.1,0.98796762]
[1768616904074,0.25974136,3288.1,3287.1,0.98796762]
[1768616904277,0.25974136,3288.0,3287.1,0.98796762]
[1768616904476,0.91114223,3288.2,3287.1,0.98796762]
[1768616904677,0.25973524,3288.1,3287.1,0.98796762]
[1768616904978,0.25973524,3288.0,3287.1,0.98796762]
[1768616905278,0.91114223,3288.2,3287.1,0.98796762]
[1768616905467,0.25973013,3288.1,3287.1,0.98796762]
[1768616905665,0.91114223,3288.2,3287.1,0.98796762]
[1768616905873,0.25973015,3288.1,3287.1,0.98796762]
[1768616906074,0.91114223,3288.2,3287.1,0.98796762]
[1768616906281,0.25973697,3288.1,3287.1,0.98796762]
[1768616906485,0.91114223,3288.2,3287.1,0.98796762]
[1768616906680,1.13525671,3288.1,3287.1,0.98796762]
[1768616906880,0.87552479,3288.0,3287.1,0.98796762]
[1768616907082,0.87552479,3287.9,3287.1,0.98796762]
[1768616907280,0.87552479,3287.8,3287.1,0.98796762]
[1768616907481,0.87552479,3287.7,3287.1,0.98796762]
[1768616907783,0.91114223,3288.2,3287.1,0.98796762]
[1768616908087,1.13523787,3288.1,3287.1,0.98796762]
[1768616908290,0.87551022,3288.0,3287.2,0.98796762]
[1768616908581,0.87551022,3287.9,3287.2,0.98796762]
[1768616908780,0.87551022,3287.8,3287.2,0.98796762]
[1768616908980,0.87551022,3287.7,3287.2,0.98796762]
[1768616909282,0.91114223,3288.2,3287.2,0.98796762]
[1768616909478,1.1352003,3288.1,3287.2,0.98796762]
[1768616909678,0.87548124,3288.0,3287.2,0.98796762]
[1768616909977,0.87548124,3287.9,3287.2,0.98796762]
[1768616910172,0.87548124,3287.8,3287.2,0.98796762]
[1768616910372,0.87548124,3287.7,3287.2,0.98796762]
[1768616910573,0.91114223,3288.2,3287.2,0.98796762]
[1768616910774,1.13520204,3288.1,3287.2,0.98796762]
[1768616910982,0.87548249,3288.0,3287.2,0.98796762]
[1768616911179,0.87548249,3287.9,3287.2,0.98796762]
[1768616911381,0.87548249,3287.8,3286.7,0.98788169]
[1768616911574,0.87548249,3287.7,3286.7,0.98788169]
[1768616911777,0.91114223,3288.2,3286.7,0.98788169]
[1768616912076,1.13518843,3288.1,3286.7,0.98788169]
[1768616912277,0.87547206,3288.0,3286.7,0.98788169]
[1768616912473,0.87547206,3287.9,3286.7,0.98788169]
[1768616912678,0.87547206,3287.8,3286.7,0.98788169]
[1768616912884,0.87547206,3287.7,3286.7,0.98788169]
[1768616913084,0.91114223,3288.2,3286.7,0.98788169]
[1768616913286,1.13520779,3288.1,3286.7,0.98788169]
[1768616913486,0.87548907,3288.0,3286.7,0.98788169]
[1768616913685,0.87548907,3287.9,3286.7,0.98788169]
[1768616913986,0.87548907,3287.8,3286.7,0.98788169]
[1768616914186,0.87548907,3287.7,3286.7,0.98788169]
[1768616914389,0.91114223,3288.2,3286.7,0.98788169]
[1768616914588,1.1352274,3288.1,3286.7,0.98788169]
[1768616914885,0.87550193,3288.0,3286.7,0.98788169]
[1768616915083,0.87550193,3287.9,3286.7,0.98788169]
[1768616915274,0.87550193,3287.8,3286.7,0.98788169]
[1768616915480,0.87550193,3287.7,3286.7,0.98788169]
[1768616915681,0.91114223,3288.2,3286.7,0.98788169]
[1768616915876,1.135248,3288.1,3286.7,0.98788169]
[1768616916084,0.87551782,3288.0,3286.7,0.98788169]
[1768616916381,0.87551782,3287.9,3286.7,0.98788169]
[1768616916581,0.87551782,3287.8,3286.7,0.98788169]
[1768616916782,0.87551782,3287.7,3286.7,0.98788169]
[1768616917077,0.91114223,3288.2,3286.7,0.98788169]
[1768616917281,1.13328845,3288.1,3286.7,0.98788169]
[1768616917481,0.87355326,3288.0,3286.7,0.98788169]
[1768616917681,0.87355326,3287.9,3286.7,0.98788169]
[1768616917878,0.87355326,3287.8,3286.7,0.98788169]
[1768616918081,0.87355326,3287.7,3286.7,0.98788169]
[1768616918284,0.91114223,3288.2,3286.7,0.98788169]
[1768616918484,1.1333323,3288.1,3286.7,0.98788169]
[1768616918686,0.87358183,3288.0,3286.7,0.98788169]
[1768616918887,0.87358183,3287.9,3286.7,0.98788169]
[1768616919089,0.87358183,3287.8,3286.7,0.98788169]
[1768616919386,0.87358183,3287.7,3286.7,0.98788169]
[1768616919582,0.91114223,3288.2,3286.7,0.98788169]
[1768616919792,1.13337344,3288.1,3286.7,0.98788169]
[1768616920092,0.87361333,3288.0,3286.7,0.98788169]
[1768616920292,0.87361333,3287.9,3286.7,0.98788169]
[1768616920493,0.87361333,3287.8,3286.7,0.98788169]
[1768616920695,0.87361333,3287.7,3286.7,0.98788169]
[1768616920895,0.91114223,3288.2,3286.7,0.98788169]
[1768616921095,1.13342287,3288.1,3286.7,0.98788169]
[1768616921294,0.87365124,3288.0,3286.7,0.98788169]
[1768616921498,0.87365124,3287.9,3286.7,0.98788169]
[1768616921802,0.87365124,3287.8,3286.7,0.98788169]
[1768616921995,0.87365124,3287.7,3286.7,0.98788169]
[1768616922195,0.91114223,3288.2,3286.7,0.98788169]
[1768616922404,1.13353092,3288.1,3286.7,0.98788169]
[1768616922596,1.13353092,3288.0,3286.7,0.98788169]
[1768616922796,0.87374641,3287.9,3286.7,0.98788169]
[1768616922997,0.87374641,3287.8,3286.7,0.98788169]
[1768616923201,0.87374641,3287.7,3286.7,0.98788169]
[1768616923396,0.91114223,3288.2,3286.7,0.98788169]
[1768616923598,1.13363676,3288.1,3286.7,0.98788169]
[1768616923896,1.13363676,3288.0,3286.7,0.98788169]
[1768616924196,0.87381541,3287.9,3286.7,0.98788169]
[1768616924404,0.87381541,3287.8,3286.7,0.98788169]
[1768616924603,0.87381541,3287.7,3286.7,0.98788169]
[1768616924804,0.87381541,3287.6,3286.7,0.98788169]
[1768616925003,0.97952211,3288.1,3286.7,0.98788169]
[1768616925305,1.1337639,3288.0,3286.7,0.98788169]
[1768616925603,0.8739136,3287.9,3286.7,0.98788169]
[1768616925804,0.8739136,3287.8,3286.7,0.98788169]
[1768616925995,0.8739136,3287.7,3286.7,0.98788169]
[1768616926195,0.8739136,3287.6,3286.7,0.98788169]
[1768616926489,0.97952211,3288.1,3286.7,0.98788169]
[1768616926694,1.13398503,3288.0,3286.7,0.98788169]
[1768616926903,0.87408567,3287.9,3286.7,0.98788169]
[1768616927101,0.87408567,3287.8,3286.7,0.98788169]
[1768616927304,0.87408567,3287.7,3286.7,0.98788169]
[1768616927496,0.87408567,3287.6,3286.7,0.98788169]
[1768616927698,0.87408567,3287.5,3286.7,0.98788169]
[1768616927898,0.97952211,3288.1,3286.7,0.98788169]
[1768616928099,2.11350465,3288.0,3286.7,0.98788169]
[1768616928400,0.87408401,3287.9,3286.7,0.98788169]
[1768616928706,0.87408401,3287.8,3286.7,0.98788169]
[1768616928906,0.87408401,3287.7,3286.7,0.98788169]
[1768616929112,0.87408401,3287.6,3286.7,0.98788169]
[1768616929415,0.87408401,3287.5,3286.7,0.98788169]
[1768616929609,0.97952211,3288.0,3286.4,0.85988011]
[1768616929814,0.97952211,3287.8,3286.3,0.15221]
[1768616930008,0.8740842,3287.7,3286.3,0.15221]
[1768616930308,0.8740842,3287.6,3286.3,0.15221]
[1768616930508,0.8740842,3287.5,3286.3,0.15221]
[1768616930805,0.97952211,3287.8,3286.3,0.15221]
[1768616931000,0.87396747,3287.7,3286.3,0.15221]
[1768616931202,0.87396747,3287.6,3286.3,0.15221]
[1768616931401,0.87396747,3287.5,3286.3,0.15221]
[1768616931600,0.97952211,3287.8,3286.3,0.15221]
[1768616931797,0.87392636,3287.7,3286.3,0.15221]
[1768616932010,0.87392636,3287.6,3286.3,0.15221]
[1768616932210,0.87392636,3287.5,3286.3,0.15221]
[1768616932412,0.97952211,3287.8,3286.3,0.15221]
[1768616932610,0.87390148,3287.7,3286.3,0.15221]
[1768616932810,0.87390148,3287.6,3286.3,0.15221]
[1768616933000,0.87390148,3287.5,3286.3,0.15221]
[1768616933197,0.97952211,3287.8,3286.3,0.15221]
[1768616933515,0.8738825,3287.7,3286.3,0.15221]
[1768616933815,0.8738825,3287.6,3286.3,0.15221]
[1768616934012,0.8738825,3287.5,3286.3,0.15221]
[1768616934202,0.97952211,3287.8,3286.3,0.15221]
[1768616934404,0.87386428,3287.7,3286.3,0.15221]
[1768616934713,0.87386428,3287.6,3286.3,0.15221]
[1768616935010,0.87386428,3287.5,3286.3,0.15221]
[1768616935213,0.97952211,3287.8,3286.3,0.15221]
[1768616935412,0.94860415,3287.6,3286.3,0.15221]
[1768616935613,0.87385138,3287.5,3286.3,0.15221]
[1768616935913,0.94860415,3287.6,3286.3,0.15221]
[1768616936113,0.87384932,3287.5,3286.3,0.15221]
[1768616936310,0.94860415,3287.6,3286.3,0.15221]
[1768616936510,0.87383662,3287.5,3286.3,0.15221]
[1768616936813,0.94860415,3287.6,3286.3,0.15221]
[1768616939018,0.94860415,3287.6,3286.2,0.00323237]
[1768616939318,0.87378058,3287.5,3286.2,0.00323237]
[1768616939517,0.94860415,3287.6,3286.2,0.00323237]
[1768616940418,1.82238405,3287.5,3286.2,0.00323237]
[1768616940618,0.94860415,3287.5,3286.2,0.00323237]
[1768616971342,0.94860415,3287.5,3286.6,0.98821798]
[1768616975540,0.94860415,3287.5,3286.2,0.00323237]
[1768616975541,0.94860415,3287.5,3286.4,0.98821798]
[1768616976841,1.90186834,3287.4,3286.4,0.98821798]
[1768616977041,1.02765623,3287.4,3286.4,0.98821798]
[1768616990846,1.02765623,3287.4,3286.2,0.00323237]
[1768616991052,1.02765623,3287.4,3286.2,0.99145035]
[1768617002762,2.01587421,3287.4,3286.2,0.00323237]
[1768617003063,1.09521047,3287.1,3285.7,0.98821798]
[1768617003964,1.09521047,3287.1,3285.7,0.99152802]
[1768617007465,2.08342845,3286.7,3285.7,0.00331004]
[1768617007674,1.09521047,3286.7,3285.7,0.00331004]
[1768617008775,2.08342845,3286.7,3285.7,0.00331004]
[1768617008969,1.09521047,3286.6,3285.7,0.00331004]
[1768617013567,1.09521047,3286.6,3285.8,0.98821798]
[1768617013974,1.09521047,3287.0,3285.8,0.98821798]
[1768617017483,1.09521047,3286.8,3285.8,0.98821798]
[1768617017681,1.09521047,3286.8,3285.7,0.00331004]
[1768617017682,1.09521047,3286.8,3286.0,0.98821798]
[1768617018784,1.09521047,3287.2,3286.4,0.98821798]
[1768617033395,1.09521047,3287.2,3285.9,0.98834406]
[1768617038301,1.09521047,3287.2,3285.7,0.15555004]
[1768617043903,1.11863867,3287.0,3285.7,0.00331004]
[1768617063114,1.15792388,3286.8,3285.7,0.00331004]
[1768617080007,1.15792388,3286.8,3285.4,0.006088]
[1768617080208,1.15792388,3286.6,3285.4,0.006088]
[1768617081025,1.15792388,3286.6,3285.4,0.00843224]
[1768617095433,1.15792388,3286.6,3285.7,0.98867162]
[1768617112063,1.15792388,3286.6,3285.4,0.00843224]
[1768617112259,1.15792388,3286.6,3285.7,0.98867162]
[1768617116965,0.87545917,3286.5,3285.7,0.98867162]
[1768617117172,1.0704205,3286.5,3285.7,0.98867162]
[1768617119068,1.0704205,3286.5,3285.5,0.98867162]
[1768617119261,1.0704205,3286.5,3285.4,0.00843224]
[1768617119463,1.0704205,3286.3,3285.4,0.99710386]
[1768617121069,1.0704205,3286.3,3285.6,0.98867162]
[1768617121466,1.0704205,3286.3,3285.5,0.98867162]
[1768617124167,1.0704205,3286.3,3285.4,0.00843224]
[1768617124371,1.0704205,3286.3,3285.4,0.99710386]
[1768617128166,1.0704205,3286.3,3285.4,0.00843224]
[1768617131679,1.0704205,3286.1,3284.6,0.15229]
[1768617131973,1.0704205,3286.1,3285.0,0.98867162]
[1768617132774,1.0704205,3286.1,3285.0,0.99249263]
[1768617134178,1.0704205,3286.1,3285.0,0.00382101]
[1768617134379,1.0704205,3286.1,3285.0,0.99249263]
[1768617136577,1.0704205,3286.1,3285.0,0.00382101]
[1768617136781,1.0704205,3286.1,3285.0,0.99249263]
[1768617146989,1.0704205,3286.1,3285.1,0.98867162]
[1768617149885,1.09346442,3286.7,3285.5,0.98867162]
[1768617150090,0.87427204,3286.6,3285.5,0.98867162]
[1768617150284,0.87427204,3286.5,3285.5,0.98867162]
[1768617150484,0.87427204,3286.4,3285.5,0.98867162]
[1768617150687,0.87427204,3286.3,3285.5,0.98867162]
[1768617150888,1.09346442,3286.7,3285.5,0.98867162]
[1768617151091,0.87429321,3286.6,3285.5,0.98867162]
[1768617151291,0.87429321,3286.5,3285.5,0.98867162]
[1768617151490,0.87429321,3286.4,3285.5,0.98867162]
[1768617151688,0.87429321,3286.3,3285.5,0.98867162]
[1768617151896,1.09346442,3286.7,3285.5,0.98867162]
[1768617152190,1.13660545,3286.6,3285.5,0.98867162]
[1768617152390,0.87438322,3286.5,3285.5,0.98867162]